Cogmind - Beta 14 @@@ ROGUE MODE // 2024.11.17 @ 08:01:02 Player: Fangrelle Result: Destroyed by G-34 Mercenary with Small Laser Performance ------------- Evolutions (1) 500 Regions Visited (3) 600 Robots Destroyed (5) 25 Value Destroyed (215) 215 Prototype IDs (0) 0 Alien Tech Used (0) 0 Bonus (200) 200 TOTAL SCORE: 1540 Bonus ------- Pacifist 200 Cogmind --------- Core Integrity 0/400 Matter 300/300 Energy 26/100 System Corruption 0% Temperature Cool (17) Movement Core (100) Ox1 Location -9/Materials Parts ------- > --- POWER (1) -------- (None) > --- PROPULSION (2) --- (None) > --- UTILITY (4) ------ Improved Heat Sink > --- WEAPON (2) ------- Beam Rifle > --- INVENTORY (5) ---- Compact Wheel High-capacity Storage Unit Medium Laser Peak State ------------ > --- POWER ------------ (None) > --- PROPULSION ------- Light Treads > --- UTILITY ---------- Improved Heat Sink Weight Redist. System > --- WEAPON ----------- Beam Rifle Maul > --- INVENTORY -------- Compact Wheel High-capacity Storage Unit Medium Laser [Rating: 10] Favorites ----------- Power Light Ion Engine Engine Light Ion Engine Propulsion Light Treads Treads Light Treads Leg Aluminum Leg Utility Improved Heat Sink Device Improved Heat Sink Storage Small Storage Unit Weapon Mining Laser Energy Gun Beam Rifle Ballistic Gun Autogun Special Weapon Mining Laser Impact Weapon Maul Build | -11 -10 -10 -9 ------- Run | Yrd Mat Min Mat Slots Evolved 2 | . . . 2 Power . | . . . . Propulsion . | . . . . Utility 2 | . . . 2 Weapon . | . . . . Parts Attached 8 | . 1 . 7 Power . | . . . . Engine . | . . . . Core . | . . . . Reactor . | . . . . Propulsion 2 | . . . 2 Treads 2 | . . . 2 Leg . | . . . . Wheel . | . . . . Hover . | . . . . Flight . | . . . . Utility 2 | . . . 2 Device 2 | . . . 2 Storage . | . . . . Processor . | . . . . Hackware . | . . . . Protection . | . . . . Artifact . | . . . . Weapon 4 | . 1 . 3 Energy Gun 1 | . . . 1 Energy Cannon . | . . . . Ballistic Gun 1 | . . . 1 Ballistic Cannon . | . . . . Launcher . | . . . . Special Weapon 1 | . 1 . . Impact Weapon 1 | . . . 1 Slashing Weapon . | . . . . Piercing Weapon . | . . . . Special Melee Weapon . | . . . . Unidentified Prototypes . | . . . . Parts Lost 6 | . . 1 5 Power . | . . . . Propulsion 2 | . . . 2 Utility 1 | . . . 1 Weapon 3 | . . 1 2 Highest Loss Streak 5 | . . 1 5 To Critical Strikes . | . . . . Average Slot Usage (%) 15 | . . 7 22 Treads 2 | . . . 4 Device 7 | . . . 13 Ballistic Gun 1 | . . . 2 Special Weapon 2 | . . 7 . Impact Weapon 1 | . . . 2 Peak Build Rating 10 | 6 1 1 10 Average Rating 2 | 6 . . 4 On Entrance 3 | 6 6 1 . Naked Turns 128 | . 17 49 62 Heaviest Build 11 | 11 1 1 7 Greatest Support 40 | 20 3 3 40 Greatest Overweight (x) 2 | . . . 2 Average Overweight (x) . | . . . . Largest Inventory Capacity 8 | 8 5 5 5 Average Capacity 5 | 8 5 5 5 Most Carried 6 | 6 5 5 5 Average Carried 4 | 6 5 5 4 Final Capacity 8 | 8 5 5 5 Final Carried 6 | 6 5 5 3 Class Distribution -------------------- 100% | Mutant Dominant Class ---------------- Mutant | -10/Materials Mutant | -10/Mines Mutant | -9/Materials Resources | -11 -10 -10 -9 ----------- Run | Yrd Mat Min Mat Matter Collected 257 | 200 . 10 47 Remotely . | . . . . Salvage Created 179 | . . . 179 Parts 8 | . . . 8 Haulers Intercepted . | . . . . Recyclers Shooed . | . . . . Parts Field Recycled . | . . . . Retrieved Matter . | . . . . Parts Self-Destructed . | . . . . Prevented . | . . . . Kills | -11 -10 -10 -9 ------- Run | Yrd Mat Min Mat Combat Hostiles Destroyed 5 | . . . 5 Guns 1 | . . . 1 AOE 4 | . . . 4 Classes Destroyed 2 | . . . 2 Grunt 3 | . . . 3 Sentry 2 | . . . 2 Best Kill Streak 4 | . . . 4 Combat Bots Only 4 | . . . 4 Max Kills in Single Turn 4 | . . . 4 Gunslinging . | . . . . Exploded 4 | . . . 4 Melee . | . . . . Uniques/NPCs Destroyed . | . . . . Combat | -11 -10 -10 -9 -------- Run | Yrd Mat Min Mat Hostile Shots Fired 127 | . 7 14 106 Missed 48 | . 5 8 35 Damage Taken 1245 | . 124 74 1047 Core 563 | . 124 37 402 Absorbed by Shields . | . . . . Core Remaining (%) 67 | 100 . 35 . Volleys Fired 6 | . . . 6 Largest 1 | . . . 1 Hottest 56 | . . . 56 Shots Fired 6 | . . . 6 Gun 6 | . . . 6 Cannon . | . . . . Launcher . | . . . . Special . | . . . . Kinetic . | . . . . Thermal 6 | . . . 6 Explosive . | . . . . Electromagnetic . | . . . . Robot Hit Streak 6 | . . . 6 Robot Miss Streak . | . . . . Penetration Max . | . . . . Secondary Targets . | . . . . Shots Hit Robots 10 | . . . 10 Core Hits 7 | . . . 7 Critical Kills . | . . . . Critical Parts Destroyed . | . . . . Critical Strikes . | . . . . Melee Attacks 6 | . . . 6 Impact 6 | . . . 6 Slashing . | . . . . Piercing . | . . . . Sneak Attacks . | . . . . Combat Hostiles . | . . . . Follow-up Attacks . | . . . . Damage Inflicted 831 | . . . 831 Guns 87 | . . . 87 Cannons . | . . . . Explosions 594 | . . . 594 Melee 150 | . . . 150 Ramming . | . . . . Kinetic . | . . . . Thermal 87 | . . . 87 Explosive 594 | . . . 594 Electromagnetic . | . . . . Impact 150 | . . . 150 Slashing . | . . . . Piercing . | . . . . Highest Corruption 2 | . 2 2 . Average Corruption 2 | . 2 2 . Corruption Purged . | . . . . Corruption Blocked . | . . . . Effects 1 | . . 1 . Message Errors 1 | . . 1 . Overload Shots . | . . . . Overflow Damage 35 | . . . 35 Projectiles . | . . . . Explosions 35 | . . . 35 Melee . | . . . . Knockbacks 1 | . . . 1 Impact 1 | . . . 1 Kinetic . | . . . . Secondary . | . . . . Self-Inflicted Damage 108 | . . . 108 Shots 1 | . . . 1 Rammed . | . . . . Targets Rammed . | . . . . Kicked . | . . . . Crushed . | . . . . Highest Temperature 22 | . . . 22 Average Temperature 12 | . . . 12 Received Heat Transfer 522 | . . 33 489 Siege Activations . | . . . . Robots Corrupted . | . . . . Combat Hostiles . | . . . . Parts Fried . | . . . . Impact Corruptions . | . . . . Robots Melted . | . . . . Combat Hostiles . | . . . . Parts Melted . | . . . . Heat Transferred 222 | . . . 222 Parts Sabotaged . | . . . . Parts Stolen . | . . . . Parts Stripped . | . . . . Power Chain Reactions . | . . . . Alert | -11 -10 -10 -9 ------- Run | Yrd Mat Min Mat Peak Influence 230 | . 15 115 230 Initial 44 | . . 5 44 Average 66 | . 1 43 89 Maximum Alert Level 1 | . . . 1 Low Security (%) 91 | 100 100 100 84 Level 1 8 | . . . 15 Level 2 . | . . . . Level 3 . | . . . . Level 4 . | . . . . Level 5 . | . . . . High Security . | . . . . Max Security . | . . . . Squads Dispatched . | . . . . Investigation . | . . . . Extermination . | . . . . Reinforcement . | . . . . Assault . | . . . . Garrison . | . . . . Intercept . | . . . . Searches Triggered . | . . . . Construction Impeded . | . . . . Haulers Reinforced . | . . . . Active Scanning Responses . | . . . . Cargo Convoy Interrupts . | . . . . Stealth | -11 -10 -10 -9 --------- Run | Yrd Mat Min Mat Distress Signals 2 | . . 1 1 Communications Jammed . | . . . . Distress Signals . | . . . . Times Spotted 32 | . 4 16 12 Peak Tracking Total 22 | . 3 22 10 Tactical Retreats 6 | . 1 4 1 Traps | -11 -10 -10 -9 ------- Run | Yrd Mat Min Mat Traps Triggered 1 | . 1 . . Indirectly . | . . . . Trap Hack Attempts . | . . . . Triggered . | . . . . Disarmed . | . . . . Reprogrammed . | . . . . Reused . | . . . . Traps Extracted . | . . . . Installed . | . . . . Triggered . | . . . . Machines | -11 -10 -10 -9 ---------- Run | Yrd Mat Min Mat Machines Disabled 1 | . . . 1 Max in Single Turn 1 | . . . 1 Machines Repaired . | . . . . Machines Dismantled . | . . . . Machines Sabotaged . | . . . . Overloaded Fab Kills . | . . . . Hacking | -11 -10 -10 -9 --------- Run | Yrd Mat Min Mat Machines Accessed 1 | . . . 1 Terminals 1 | . . . 1 Fabricators . | . . . . Repair Stations . | . . . . Recycling Units . | . . . . Scanalyzers . | . . . . Garrison Access . | . . . . Total Hacks 4 | . . . 4 Successful 1 | . . . 1 Failed 3 | . . . 3 Catastrophic . | . . . . Database Lockouts . | . . . . Manual 4 | . . . 4 Terminals 4 | . . . 4 Fabricators . | . . . . Repair Stations . | . . . . Recycling Units . | . . . . Scanalyzers . | . . . . Garrison Access . | . . . . Terminal Hacks . | . . . . Fabricator Hacks . | . . . . Repair Station Hacks . | . . . . Recycling Unit Hacks . | . . . . Scanalyzer . | . . . . Garrison Access Hacks . | . . . . Unauthorized Hacks 1 | . . . 1 Terminals 1 | . . . 1 Botnet 1 | . . . 1 Fabricators . | . . . . Repair Stations . | . . . . Recycling Units . | . . . . Scanalyzers . | . . . . Garrison Access . | . . . . Data Cores Recovered . | . . . . Used . | . . . . Hacking Detections 1 | . . . 1 Full Trace Events . | . . . . Feedback Events . | . . . . Feedback Blocked . | . . . . Robot Schematics Acquired . | . . . . Robots Built . | . . . . Authchips . | . . . . Time . | . . . . Total Robot Build Rating . | . . . . Part Schematics Acquired . | . . . . Parts Built . | . . . . Authchips . | . . . . Time . | . . . . Total Part Build Rating . | . . . . Parts Repaired . | . . . . Time . | . . . . Parts Recycled . | . . . . Recycled Matter . | . . . . Retrieved Matter . | . . . . Retrieved Components . | . . . . Parts Scanalyzed . | . . . . Part Schematics Acquired . | . . . . Parts Damaged . | . . . . Bothacking | -11 -10 -10 -9 ------------ Run | Yrd Mat Min Mat Used RIF Installer . | . . . . Robots Hacked . | . . . . Non-combat . | . . . . Combat . | . . . . Robot Hacks Applied . | . . . . Relay Couplers Released . | . . . . Fabnet Peak Effective % . | . . . . Robots Rewired . | . . . . Allies Hacked . | . . . . Hacks Repelled . | . . . . Allies | -11 -10 -10 -9 -------- Run | Yrd Mat Min Mat Total Allies 1 | . . 1 . Largest Group 1 | . . 1 1 Highest-Rated Group 31 | . . 31 31 Highest-Rated Ally 31 | . . 31 31 Total Orders . | . . . . Ally Attacks 5 | . . . 5 Total Damage 65 | . . . 65 Kills . | . . . . Allies Corrupted . | . . . . Allies Melted . | . . . . Intel | -11 -10 -10 -9 ------- Run | Yrd Mat Min Mat Robot Analysis Total . | . . . . Derelict Logs Recovered 1 | . . 1 . Drone Launches . | . . . . Drone Recoveries . | . . . . Exploration | -11 -10 -10 -9 ------------- Run | Yrd Mat Min Mat Turns Passed 298 | 2 20 108 168 Spaces Moved 471 | 2 36 215 218 Core 464 | . 36 215 213 Treads 5 | . . . 5 Legs 2 | 2 . . . Wheels . | . . . . Hover . | . . . . Flight . | . . . . Fastest Speed 50 | 120 50 50 50 Average Speed 53 | 120 50 50 56 Slowest Speed 160 | 120 50 50 160 Overloaded Moves . | . . . . Propulsion Burnouts . | . . . . Robots Hopped . | . . . . Cave-ins Triggered . | . . . . Exploration Rate (%) 24 | 2 12 67 17 Regions Visited 3 Branch Regions 1 Pre-discovered Areas 1 | . . 1 . Known Exits Taken . | . . . . Unknown Exits Taken 3 | 1 1 1 . Scrap Searched 1 | . . 1 . Spaces Dug . | . . . . Terrain Destroyed 38 | . . . 38 Melee . | . . . . Projectile . | . . . . AOE 38 | . . . 38 Terrain Rammed . | . . . . Walls Destroyed . | . . . . Machines Disabled . | . . . . Actions | -11 -10 -10 -9 --------- Run | Yrd Mat Min Mat Total 494 | 1 36 214 243 Wait 4 | . . . 4 Move 468 | 1 35 214 218 Hop . | . . . . Pick Up 1 | . . . 1 Fast Attach 6 | . 1 . 5 Attach 2 | . . . 2 Detach . | . . . . Swap . | . . . . Drop 1 | . . . 1 Fire 6 | . . . 6 Melee 6 | . . . 6 Ram . | . . . . Kick . | . . . . Crush . | . . . . Escape Stasis . | . . . . Rewire . | . . . . Trap . | . . . . Miscellaneous . | . . . . Route ------- -11/Scrapyard -10/Materials -10/Mines -9/Materials History --------- Turn | Location | Event 1 | -11/Scrapyard | Discovered new exit (range 1) 3 | -11/Scrapyard | Entered Materials 3 | -10/Materials | Released all parts (6) 16 | -10/Materials | Discovered new exit (range 9) 23 | -10/Materials | Entered Mines 39 | -10/Mines | Core integrity fell below 50% 67 | -10/Mines | Learned location of Mines (-9) 70 | -10/Mines | Assembled infested the area 122 | -10/Mines | Discovered new exit (range 8) 125 | -10/Mines | Received a Mining Laser from a helpful Derelict 131 | -10/Mines | Entered Materials 131 | -9/Materials | Accompanied by 1 ally 131 | -9/Materials | Evolved 2 slots: Utility x2 277 | -9/Materials | Core integrity fell below 50% 286 | -9/Materials | Core integrity fell below 20% 299 | -9/Materials | Destroyed by G-34 Mercenary with Small Laser Last Messages --------------- 00276_ Acquired 37 matter. 00277_ U-05 Engineer lays Concrete. 00278_ G-34 Mercenary knocked back. 00279_ The unstable cave ceiling collapses. 00279_ U-05 Engineer lays Concrete. 00281_ U-05 Engineer builds a Wall. 00282_ Acquired Beam Rifle. 00285_ U-05 Engineer builds a Wall. 00288_ Maul destroyed. 00289_ U-05 Engineer builds a Wall. 00292_ The unstable cave ceiling collapses. 00294_ Critical hit (Burn: +37). 00294_ U-05 Engineer lays Concrete. 00295_ Destroyed Ion Engine. 00295_ Lgt. Treads destroyed. 00295_ U-05 Engineer lays Concrete. 00297_ G-34 Mercenary destroyed. 00297_ Weight Redist. System destroyed. 00298_ U-05 Engineer builds a Door. 00298_ U-05 Engineer builds a Wall. Map ----- +----------------------------------------------------+ | | | | | | | | | | | | | | | | | | | | | | | | | | | | | | | | | | | ?????????????????########### | | ?????????????????# # | | ?????????????????? # | | ??????????########?? # | | ##??#####?# """ #??? ? | | # ## ### """ #####+#+### | | # ## """ # | | #! ## ## / | | % @ g # # ####### | | % %%# # ! # #?????# | | [[+ ##+##### #######+ | | g # # | | Y # # | | =#####+##### # | | ## ### ??# # | | ?######## ## / """ "" | | ????????## """## # """ "" | | ?????????# """## # """ "" | | ?????????# """## # | | ?????????# ## ######## | | ???############### #??????? | | ???# # #??????? | | ???# # #??????? | | ???# # #??????? | | ???# # #??????? | | ???# # #??????? | | ???# # #??????? | | ???###+####+###### ####### | | ?????# #?# | | ?????# #?# | | ?????# #?# | | ?#####+### ###/######+### | | # # %# #??? ?? | +----------------------------------------------------+ Best States ------------- Heat Dissipation 42 Energy Generation 5 Energy Capacity 100 Matter Stores 300 Matter Capacity 300 Sight Range 16 Terrain Scan Density 10 Additional Mass Support 6 Evasion (%) 50 Recoil Reduction 2 Item Schematics ----------------- None Robot Schematics ------------------ None Fabricated ------------ Nothing Alien Tech Used ----------------- None Achievements -------------- None Challenges ------------ None Game ------ Seed MasterSwarmArray Manual? 0 Play Time 00:06:39 Cumulative 97.3 hours Start 2024.11.17 @ 07:56:43 End 2024.11.17 @ 08:01:02 Sessions 1 Manual Loads 0 Difficulty Rogue Special Mode None Game No. 175 Rogue 175 Adventurer 0 Explorer 0 Win Type - Total 0 Types 0/0/0/0/0/0/0/0/0 Lore% 42 Gallery% 38 Achievement% 34 Wizard Run 0 Options --------- Layout 0 ASCII 0 Keyboard 0 Movement Mouse Keybinds 0 Fullscreen 1 Font 24/Cog Map View 91x25 Zoom Use 100% Tactical HUD 1 Map Filters NONE Filters NONE Steam 1 RUN: c4b89ebe-8f12-4cfd-8cad-4ee2feda8118